[Event "Titled Tuesday Blitz December 06 Late 2022"]
[White "Jaferian, Koosha"]
[Black "Tworuszka, Michal"]
[WhiteFideId "12507440"]
[BlackFideId "1117858"]
[WhiteElo "2127"]
[BlackElo "2421"]
[Result "1-0"]
[Round "04"]
[TimeControl "180+1"]
[Date "2022.12.07"]
[WhiteClock "0:01:33"]
[BlackClock "0:00:01"]

1. e4 {[%clk 0:03:00]}  c5 {[%clk 0:02:59]} 2. Nf3 {[%clk 0:03:01]}  d6 {[%clk 0:02:59]} 3. d4 {[%clk 0:03:01]}  cxd4 {[%clk 0:02:59]} 4. Nxd4 {[%clk 0:03:01]}  Nf6 {[%clk 0:02:59]} 5. Nc3 {[%clk 0:03:02]}  a6 {[%clk 0:02:59]} 6. Be3 {[%clk 0:03:02]}  e5 {[%clk 0:02:58]} 7. Nf3 {[%clk 0:03:02]}  Qc7 {[%clk 0:02:56]} 8. Nd2 {[%clk 0:02:59]}  Be6 {[%clk 0:02:51]} 9. a4 {[%clk 0:02:59]}  Nbd7 {[%clk 0:02:50]} 10. a5 {[%clk 0:02:58]}  Be7 {[%clk 0:02:47]} 11. Be2 {[%clk 0:02:56]}  O-O {[%clk 0:02:46]} 12. O-O {[%clk 0:02:57]}  Rfc8 {[%clk 0:02:43]} 13. Ra4 {[%clk 0:02:46]}  Nc5 {[%clk 0:02:17]} 14. Bxc5 {[%clk 0:02:35]}  Qxc5 {[%clk 0:02:12]} 15. Nc4 {[%clk 0:02:35]}  Nd7 {[%clk 0:01:58]} 16. Ne3 {[%clk 0:02:18]}  Qa7 {[%clk 0:01:30]} 17. Ned5 {[%clk 0:02:13]}  Bd8 {[%clk 0:01:27]} 18. Bg4 {[%clk 0:02:04]}  Nc5 {[%clk 0:01:24]} 19. Ra3 {[%clk 0:01:59]}  b5 {[%clk 0:01:02]} 20. axb6 {[%clk 0:01:55]}  Bxb6 {[%clk 0:01:01]} 21. Nb5 {[%clk 0:01:45]}  Qb8 {[%clk 0:00:57]} 22. Ne7+ {[%clk 0:01:45]}  Kh8 {[%clk 0:00:47]} 23. Nxc8 {[%clk 0:01:45]}  Qxc8 {[%clk 0:00:18]} 24. Nxd6 {[%clk 0:01:41]}  Qc6 {[%clk 0:00:08]} 25. Bxe6 {[%clk 0:01:40]}  Nxe6 {[%clk 0:00:07]} 26. Nxf7+ {[%clk 0:01:40]}  Kg8 {[%clk 0:00:07]} 27. Nxe5 {[%clk 0:01:41]}  Qxe4 {[%clk 0:00:06]} 28. Qf3 {[%clk 0:01:36]}  Qxf3 {[%clk 0:00:02]} 29. Nxf3 {[%clk 0:01:37]}  Nf4 {[%clk 0:00:01]} 30. Re1 {[%clk 0:01:33]} 1-0


[Site "https://www.chess.com"]

[Event "Titled Tuesday Blitz December 06 Late 2022"]
[White "Jobava, Baadur"]
[Black "Zierk, Steven"]
[WhiteFideId "13601520"]
[BlackFideId "2034255"]
[WhiteElo "2582"]
[BlackElo "2494"]
[Result "1-0"]
[Round "04"]
[TimeControl "180+1"]
[Date "2022.12.06"]
[WhiteClock "0:00:27"]
[BlackClock "0:00:32"]

1. e4 {[%clk 0:03:00]}  e6 {[%clk 0:02:59]} 2. d4 {[%clk 0:03:00]}  d5 {[%clk 0:02:59]} 3. exd5 {[%clk 0:03:01]}  exd5 {[%clk 0:02:59]} 4. Nf3 {[%clk 0:03:01]}  Nc6 {[%clk 0:02:59]} 5. Nc3 {[%clk 0:03:01]}  Bb4 {[%clk 0:02:55]} 6. Bb5 {[%clk 0:03:00]}  Ne7 {[%clk 0:02:54]} 7. Bg5 {[%clk 0:02:54]}  f6 {[%clk 0:02:53]} 8. Bf4 {[%clk 0:02:50]}  Bg4 {[%clk 0:02:50]} 9. h3 {[%clk 0:02:49]}  Bh5 {[%clk 0:02:46]} 10. a3 {[%clk 0:02:16]}  Bd6 {[%clk 0:02:44]} 11. Bxd6 {[%clk 0:01:57]}  Qxd6 {[%clk 0:02:45]} 12. O-O {[%clk 0:01:55]}  O-O {[%clk 0:02:41]} 13. Be2 {[%clk 0:01:55]}  Qf4 {[%clk 0:02:33]} 14. g3 {[%clk 0:01:50]}  Qh6 {[%clk 0:02:31]} 15. Re1 {[%clk 0:01:44]}  Rad8 {[%clk 0:02:26]} 16. Kg2 {[%clk 0:01:43]}  Rfe8 {[%clk 0:02:20]} 17. Nb5 {[%clk 0:01:40]}  Rd7 {[%clk 0:02:15]} 18. Nh4 {[%clk 0:01:39]}  Bf7 {[%clk 0:02:08]} 19. Bg4 {[%clk 0:01:39]}  f5 {[%clk 0:02:03]} 20. Nxf5 {[%clk 0:01:34]}  Nxf5 {[%clk 0:02:02]} 21. Rxe8+ {[%clk 0:01:29]}  Bxe8 {[%clk 0:02:03]} 22. Bxf5 {[%clk 0:01:29]}  Re7 {[%clk 0:01:59]} 23. Qf3 {[%clk 0:01:13]}  Bf7 {[%clk 0:01:48]} 24. Rd1 {[%clk 0:01:12]}  Na5 {[%clk 0:01:32]} 25. b3 {[%clk 0:01:04]}  c6 {[%clk 0:01:23]} 26. Nc3 {[%clk 0:01:04]}  b6 {[%clk 0:01:21]} 27. Rd3 {[%clk 0:00:55]}  Qc1 {[%clk 0:01:17]} 28. Re3 {[%clk 0:00:53]}  Rxe3 {[%clk 0:01:08]} 29. Qxe3 {[%clk 0:00:54]}  Qxa3 {[%clk 0:01:08]} 30. Qe5 {[%clk 0:00:48]}  g6 {[%clk 0:01:08]} 31. Bd7 {[%clk 0:00:43]}  Qb2 {[%clk 0:01:06]} 32. Qb8+ {[%clk 0:00:41]}  Kg7 {[%clk 0:01:06]} 33. Qe5+ {[%clk 0:00:42]}  Kg8 {[%clk 0:01:06]} 34. Qb8+ {[%clk 0:00:30]}  Kg7 {[%clk 0:01:06]} 35. Qxa7 {[%clk 0:00:30]}  Kf6 {[%clk 0:00:46]} 36. Qc7 {[%clk 0:00:28]}  Kg5 {[%clk 0:00:32]} 37. Qf4+ {[%clk 0:00:27]} 1-0


[Site "https://www.chess.com"]

[Event "Titled Tuesday Blitz December 06 Late 2022"]
[White "Kaganskiy, Gleb"]
[Black "Jarmula, Lukasz"]
[WhiteFideId "4132025"]
[BlackFideId "1160664"]
[WhiteElo "2165"]
[BlackElo "2357"]
[Result "1/2-1/2"]
[Round "04"]
[TimeControl "180+1"]
[Date "2022.12.07"]
[WhiteClock "0:00:22"]
[BlackClock "0:00:17"]

1. e4 {[%clk 0:03:00]}  e6 {[%clk 0:02:59]} 2. d4 {[%clk 0:02:57]}  d5 {[%clk 0:02:59]} 3. Nd2 {[%clk 0:02:52]}  c5 {[%clk 0:02:57]} 4. exd5 {[%clk 0:02:50]}  Qxd5 {[%clk 0:02:57]} 5. Ngf3 {[%clk 0:02:50]}  cxd4 {[%clk 0:02:57]} 6. Bc4 {[%clk 0:02:50]}  Qd6 {[%clk 0:02:57]} 7. O-O {[%clk 0:02:44]}  Nf6 {[%clk 0:02:57]} 8. Re1 {[%clk 0:02:36]}  Be7 {[%clk 0:02:56]} 9. Ne4 {[%clk 0:02:36]}  Nxe4 {[%clk 0:02:54]} 10. Rxe4 {[%clk 0:02:37]}  Nc6 {[%clk 0:02:52]} 11. Nxd4 {[%clk 0:02:34]}  e5 {[%clk 0:02:29]} 12. Qf3 {[%clk 0:01:58]}  Nxd4 {[%clk 0:02:28]} 13. Qxf7+ {[%clk 0:01:57]}  Kd8 {[%clk 0:02:28]} 14. Be3 {[%clk 0:01:29]}  Bf5 {[%clk 0:02:16]} 15. Qxg7 {[%clk 0:01:20]}  Rf8 {[%clk 0:00:56]} 16. Rxe5 {[%clk 0:01:02]}  Bf6 {[%clk 0:00:44]} 17. Rd5 {[%clk 0:00:57]}  Bxg7 {[%clk 0:00:35]} 18. Rxd6+ {[%clk 0:00:57]}  Kc7 {[%clk 0:00:35]} 19. Rxd4 {[%clk 0:00:49]}  Bxd4 {[%clk 0:00:35]} 20. Bxd4 {[%clk 0:00:50]}  Rad8 {[%clk 0:00:33]} 21. c3 {[%clk 0:00:42]}  a6 {[%clk 0:00:30]} 22. Bf1 {[%clk 0:00:36]}  Rfe8 {[%clk 0:00:28]} 23. g3 {[%clk 0:00:34]}  Be4 {[%clk 0:00:27]} 24. Re1 {[%clk 0:00:27]}  Bd5 {[%clk 0:00:26]} 25. Ra1 {[%clk 0:00:24]}  h5 {[%clk 0:00:25]} 26. h4 {[%clk 0:00:23]}  b5 {[%clk 0:00:19]} 27. Be3 {[%clk 0:00:23]}  Bc4 {[%clk 0:00:17]} 28. Bg2 {[%clk 0:00:22]}  Bd5 {[%clk 0:00:17]} 29. Bf1 {[%clk 0:00:22]}  Bc4 {[%clk 0:00:17]} 30. Bg2 {[%clk 0:00:22]}  Bd5 {[%clk 0:00:17]} 31. Bf1 {[%clk 0:00:22]} 1/2-1/2


[Site "https://www.chess.com"]

[Event "Titled Tuesday Blitz December 06 Late 2022"]
[White "Karas, Marek"]
[Black "Vykouk, Jan"]
[WhiteFideId "14928558"]
[BlackFideId "349658"]
[WhiteElo "2247"]
[BlackElo "2378"]
[Result "0-1"]
[Round "04"]
[TimeControl "180+1"]
[Date "2022.12.07"]
[WhiteClock "0:00:02"]
[BlackClock "0:01:24"]

1. d4 {[%clk 0:03:00]}  Nf6 {[%clk 0:02:58]} 2. Nf3 {[%clk 0:02:58]}  g6 {[%clk 0:02:57]} 3. c4 {[%clk 0:02:57]}  Bg7 {[%clk 0:02:56]} 4. Nc3 {[%clk 0:02:56]}  d6 {[%clk 0:02:55]} 5. e4 {[%clk 0:02:56]}  O-O {[%clk 0:02:55]} 6. Be2 {[%clk 0:02:55]}  Nbd7 {[%clk 0:02:56]} 7. O-O {[%clk 0:02:54]}  e5 {[%clk 0:02:56]} 8. Re1 {[%clk 0:02:48]}  Qe7 {[%clk 0:02:55]} 9. Bf1 {[%clk 0:02:48]}  c6 {[%clk 0:02:55]} 10. b3 {[%clk 0:02:45]}  Ne8 {[%clk 0:02:52]} 11. Bb2 {[%clk 0:02:39]}  Nc7 {[%clk 0:02:43]} 12. Qd2 {[%clk 0:02:30]}  Ne6 {[%clk 0:02:42]} 13. d5 {[%clk 0:02:26]}  Nd4 {[%clk 0:02:42]} 14. Be2 {[%clk 0:02:00]}  c5 {[%clk 0:02:39]} 15. Bd1 {[%clk 0:01:52]}  a6 {[%clk 0:02:37]} 16. a3 {[%clk 0:01:51]}  f5 {[%clk 0:02:22]} 17. exf5 {[%clk 0:01:44]}  gxf5 {[%clk 0:02:23]} 18. b4 {[%clk 0:01:39]}  e4 {[%clk 0:02:16]} 19. Ng5 {[%clk 0:01:13]}  Ne5 {[%clk 0:02:16]} 20. Ne6 {[%clk 0:00:54]}  Nxc4 {[%clk 0:02:09]} 21. Qc1 {[%clk 0:00:50]}  Nxb2 {[%clk 0:02:07]} 22. Qxb2 {[%clk 0:00:44]}  Nxe6 {[%clk 0:01:51]} 23. dxe6 {[%clk 0:00:41]}  Bxe6 {[%clk 0:01:52]} 24. Bb3 {[%clk 0:00:25]}  c4 {[%clk 0:01:51]} 25. Ba2 {[%clk 0:00:22]}  b5 {[%clk 0:01:50]} 26. Rad1 {[%clk 0:00:20]}  d5 {[%clk 0:01:46]} 27. Qc1 {[%clk 0:00:13]}  d4 {[%clk 0:01:44]} 28. Ne2 {[%clk 0:00:13]}  d3 {[%clk 0:01:40]} 29. Nc3 {[%clk 0:00:13]}  Qf6 {[%clk 0:01:38]} 30. Nb1 {[%clk 0:00:12]}  Rac8 {[%clk 0:01:32]} 31. Qf4 {[%clk 0:00:03]}  Bf7 {[%clk 0:01:25]} 32. Rc1 {[%clk 0:00:02]}  c3 {[%clk 0:01:24]} 33. Bxf7+ {[%clk 0:00:02]}  Rxf7 {[%clk 0:01:24]} 0-1


[Site "https://www.chess.com"]

[Event "Titled Tuesday Blitz December 06 Late 2022"]
[White "Kavutskiy, Konstantin"]
[Black "Ankerst, Mihael"]
[WhiteFideId "2026384"]
[BlackFideId "14602369"]
[WhiteElo "2386"]
[BlackElo "2368"]
[Result "1-0"]
[Round "04"]
[TimeControl "180+1"]
[Date "2022.12.07"]
[WhiteClock "0:00:41"]
[BlackClock "0:00:24"]

1. d4 {[%clk 0:03:00]}  Nf6 {[%clk 0:02:55]} 2. Bg5 {[%clk 0:03:00]}  g6 {[%clk 0:02:54]} 3. Nd2 {[%clk 0:02:56]}  d5 {[%clk 0:02:51]} 4. e3 {[%clk 0:02:53]}  Bg7 {[%clk 0:02:51]} 5. Bd3 {[%clk 0:02:50]}  O-O {[%clk 0:02:52]} 6. c3 {[%clk 0:02:49]}  Nbd7 {[%clk 0:02:47]} 7. f4 {[%clk 0:02:48]}  b6 {[%clk 0:02:39]} 8. Ngf3 {[%clk 0:02:48]}  Bb7 {[%clk 0:02:40]} 9. Ne5 {[%clk 0:02:48]}  Ne4 {[%clk 0:02:39]} 10. Nxe4 {[%clk 0:02:41]}  dxe4 {[%clk 0:02:39]} 11. Bc4 {[%clk 0:02:41]}  Nxe5 {[%clk 0:02:35]} 12. fxe5 {[%clk 0:02:39]}  Bd5 {[%clk 0:02:31]} 13. Be2 {[%clk 0:02:31]}  f6 {[%clk 0:02:29]} 14. exf6 {[%clk 0:02:24]}  exf6 {[%clk 0:02:29]} 15. Bf4 {[%clk 0:02:24]}  c5 {[%clk 0:02:26]} 16. c4 {[%clk 0:02:21]}  Bb7 {[%clk 0:02:21]} 17. d5 {[%clk 0:02:20]}  f5 {[%clk 0:02:21]} 18. Rb1 {[%clk 0:02:15]}  b5 {[%clk 0:02:12]} 19. O-O {[%clk 0:02:08]}  bxc4 {[%clk 0:02:12]} 20. Bxc4 {[%clk 0:02:07]}  Kh8 {[%clk 0:02:10]} 21. h3 {[%clk 0:01:59]}  Re8 {[%clk 0:02:03]} 22. Qb3 {[%clk 0:01:57]}  Qd7 {[%clk 0:02:01]} 23. Bb5 {[%clk 0:01:50]}  Qxd5 {[%clk 0:02:01]} 24. Bxe8 {[%clk 0:01:49]}  Rxe8 {[%clk 0:01:52]} 25. Rfd1 {[%clk 0:01:46]}  Qxb3 {[%clk 0:01:22]} 26. axb3 {[%clk 0:01:47]}  Ba6 {[%clk 0:01:22]} 27. Ra1 {[%clk 0:01:43]}  Bd3 {[%clk 0:01:20]} 28. Rxa7 {[%clk 0:01:42]}  Bxb2 {[%clk 0:01:19]} 29. Bd6 {[%clk 0:01:36]}  Rc8 {[%clk 0:01:17]} 30. Rc7 {[%clk 0:01:28]}  Rb8 {[%clk 0:01:11]} 31. Rxh7+ {[%clk 0:01:22]}  Kxh7 {[%clk 0:01:09]} 32. Bxb8 {[%clk 0:01:23]}  Kg7 {[%clk 0:00:55]} 33. Bd6 {[%clk 0:01:20]}  Ba3 {[%clk 0:00:56]} 34. Ra1 {[%clk 0:01:18]}  Bb4 {[%clk 0:00:54]} 35. Ra7+ {[%clk 0:01:13]}  Kf6 {[%clk 0:00:52]} 36. Rc7 {[%clk 0:01:14]}  Bc2 {[%clk 0:00:52]} 37. Bxc5 {[%clk 0:01:07]}  Bxc5 {[%clk 0:00:52]} 38. Rxc5 {[%clk 0:01:08]}  Bxb3 {[%clk 0:00:53]} 39. Kf2 {[%clk 0:01:07]}  Kg5 {[%clk 0:00:50]} 40. Kg3 {[%clk 0:01:06]}  Bd1 {[%clk 0:00:48]} 41. h4+ {[%clk 0:01:06]}  Kh5 {[%clk 0:00:43]} 42. Rc8 {[%clk 0:01:07]}  Kh6 {[%clk 0:00:43]} 43. Kf4 {[%clk 0:01:07]}  Be2 {[%clk 0:00:39]} 44. g3 {[%clk 0:00:56]}  Bf3 {[%clk 0:00:38]} 45. Ke5 {[%clk 0:00:50]}  Kg7 {[%clk 0:00:33]} 46. Rc7+ {[%clk 0:00:48]}  Kh6 {[%clk 0:00:33]} 47. Kf6 {[%clk 0:00:48]}  Kh5 {[%clk 0:00:28]} 48. Rg7 {[%clk 0:00:45]}  Kg4 {[%clk 0:00:29]} 49. Rxg6+ {[%clk 0:00:45]}  Kh3 {[%clk 0:00:27]} 50. Kxf5 {[%clk 0:00:43]}  Kg2 {[%clk 0:00:26]} 51. g4 {[%clk 0:00:42]}  Kf2 {[%clk 0:00:27]} 52. Kf4 {[%clk 0:00:42]}  Ke2 {[%clk 0:00:27]} 53. h5 {[%clk 0:00:42]}  Bxg4 {[%clk 0:00:24]} 54. Rxg4 {[%clk 0:00:42]}  Kd3 {[%clk 0:00:24]} 55. h6 {[%clk 0:00:42]}  Ke2 {[%clk 0:00:24]} 56. h7 {[%clk 0:00:43]}  Kd3 {[%clk 0:00:25]} 57. h8=Q {[%clk 0:00:43]}  Kd2 {[%clk 0:00:26]} 58. Qd8+ {[%clk 0:00:43]}  Ke2 {[%clk 0:00:26]} 59. Rg2+ {[%clk 0:00:43]}  Kf1 {[%clk 0:00:27]} 60. Ra2 {[%clk 0:00:40]}  Ke1 {[%clk 0:00:24]} 61. Qd2+ {[%clk 0:00:40]}  Kf1 {[%clk 0:00:24]} 62. Qd1# {[%clk 0:00:41]} 1-0


[Site "https://www.chess.com"]

[Event "Titled Tuesday Blitz December 06 Late 2022"]
[White "Koelle, Tobias"]
[Black "Abasov, Nijat"]
[WhiteFideId "16207378"]
[BlackFideId "13402960"]
[WhiteElo "2497"]
[BlackElo "2546"]
[Result "0-1"]
[Round "04"]
[TimeControl "180+1"]
[Date "2022.12.06"]
[WhiteClock "0:00:02"]
[BlackClock "0:00:05"]

1. d4 {[%clk 0:03:00]}  Nf6 {[%clk 0:02:59]} 2. c4 {[%clk 0:03:01]}  e6 {[%clk 0:03:00]} 3. Nc3 {[%clk 0:02:57]}  Bb4 {[%clk 0:03:01]} 4. e3 {[%clk 0:02:56]}  O-O {[%clk 0:03:01]} 5. Ne2 {[%clk 0:02:56]}  d5 {[%clk 0:03:01]} 6. a3 {[%clk 0:02:56]}  Be7 {[%clk 0:03:02]} 7. cxd5 {[%clk 0:02:56]}  exd5 {[%clk 0:03:02]} 8. g3 {[%clk 0:02:56]}  Re8 {[%clk 0:02:57]} 9. Bg2 {[%clk 0:02:55]}  c6 {[%clk 0:02:57]} 10. O-O {[%clk 0:02:56]}  Na6 {[%clk 0:02:58]} 11. b4 {[%clk 0:02:55]}  Nc7 {[%clk 0:02:58]} 12. Rb1 {[%clk 0:02:55]}  Bf5 {[%clk 0:02:57]} 13. Rb2 {[%clk 0:02:51]}  Qd7 {[%clk 0:02:40]} 14. f3 {[%clk 0:02:50]}  Bd6 {[%clk 0:02:28]} 15. Bd2 {[%clk 0:02:30]}  a5 {[%clk 0:02:26]} 16. bxa5 {[%clk 0:02:29]}  Rxa5 {[%clk 0:02:17]} 17. Ne4 {[%clk 0:02:23]}  dxe4 {[%clk 0:01:59]} 18. Bxa5 {[%clk 0:02:21]}  exf3 {[%clk 0:02:00]} 19. Bxf3 {[%clk 0:02:09]}  Ncd5 {[%clk 0:02:00]} 20. Bd2 {[%clk 0:02:03]}  Nxe3 {[%clk 0:01:57]} 21. Bxe3 {[%clk 0:02:03]}  Rxe3 {[%clk 0:01:58]} 22. Qa4 {[%clk 0:01:55]}  Bh3 {[%clk 0:01:21]} 23. Qa8+ {[%clk 0:01:45]}  Re8 {[%clk 0:01:19]} 24. Qxb7 {[%clk 0:01:44]}  Qxb7 {[%clk 0:01:16]} 25. Rxb7 {[%clk 0:01:45]}  Bxf1 {[%clk 0:01:16]} 26. Kxf1 {[%clk 0:01:46]}  Bxa3 {[%clk 0:01:16]} 27. Bxc6 {[%clk 0:01:46]}  Rd8 {[%clk 0:01:16]} 28. Ra7 {[%clk 0:01:42]}  Bd6 {[%clk 0:01:14]} 29. Ra8 {[%clk 0:01:42]}  Bb8 {[%clk 0:01:12]} 30. Nc3 {[%clk 0:01:37]}  Kf8 {[%clk 0:01:11]} 31. d5 {[%clk 0:01:32]}  Ke7 {[%clk 0:01:12]} 32. Ke2 {[%clk 0:01:31]}  Ng4 {[%clk 0:01:04]} 33. h3 {[%clk 0:01:22]}  Ne5 {[%clk 0:01:05]} 34. Bb5 {[%clk 0:01:05]}  h5 {[%clk 0:01:04]} 35. Ne4 {[%clk 0:01:04]}  f5 {[%clk 0:00:45]} 36. d6+ {[%clk 0:01:05]}  Ke6 {[%clk 0:00:37]} 37. Nc5+ {[%clk 0:01:05]}  Kd5 {[%clk 0:00:31]} 38. Na6 {[%clk 0:01:01]}  Kxd6 {[%clk 0:00:18]} 39. Rxb8 {[%clk 0:00:59]}  Rxb8 {[%clk 0:00:18]} 40. Nxb8 {[%clk 0:01:00]}  Kc7 {[%clk 0:00:18]} 41. Ke3 {[%clk 0:00:47]}  Kxb8 {[%clk 0:00:11]} 42. Kf4 {[%clk 0:00:47]}  Nf7 {[%clk 0:00:12]} 43. Be8 {[%clk 0:00:45]}  Nd6 {[%clk 0:00:11]} 44. Bxh5 {[%clk 0:00:46]}  Kc7 {[%clk 0:00:12]} 45. Ke5 {[%clk 0:00:46]}  Kd7 {[%clk 0:00:12]} 46. Bg6 {[%clk 0:00:42]}  Ke7 {[%clk 0:00:13]} 47. Bxf5 {[%clk 0:00:42]}  Nf7+ {[%clk 0:00:13]} 48. Kf4 {[%clk 0:00:42]}  g5+ {[%clk 0:00:13]} 49. Ke3 {[%clk 0:00:41]}  Kf6 {[%clk 0:00:14]} 50. Bc2 {[%clk 0:00:41]}  Nd6 {[%clk 0:00:14]} 51. Kf3 {[%clk 0:00:40]}  Nf7 {[%clk 0:00:14]} 52. Be4 {[%clk 0:00:40]}  Nd6 {[%clk 0:00:14]} 53. Ke3 {[%clk 0:00:40]}  Nf7 {[%clk 0:00:14]} 54. Bd3 {[%clk 0:00:40]}  Nd6 {[%clk 0:00:15]} 55. Kd4 {[%clk 0:00:40]}  Nf7 {[%clk 0:00:15]} 56. Kd5 {[%clk 0:00:40]}  Ne5 {[%clk 0:00:15]} 57. Be2 {[%clk 0:00:40]}  Nf7 {[%clk 0:00:16]} 58. Bd1 {[%clk 0:00:38]}  Nh6 {[%clk 0:00:16]} 59. Ke4 {[%clk 0:00:35]}  Nf5 {[%clk 0:00:16]} 60. Kf3 {[%clk 0:00:34]}  Nd4+ {[%clk 0:00:16]} 61. Kg4 {[%clk 0:00:33]}  Nf5 {[%clk 0:00:16]} 62. Kf3 {[%clk 0:00:31]}  Nd4+ {[%clk 0:00:17]} 63. Kf2 {[%clk 0:00:30]}  Nf5 {[%clk 0:00:17]} 64. Bc2 {[%clk 0:00:30]}  Nd4 {[%clk 0:00:17]} 65. Be4 {[%clk 0:00:31]}  Ne6 {[%clk 0:00:18]} 66. Kf3 {[%clk 0:00:31]}  Nd4+ {[%clk 0:00:18]} 67. Kg4 {[%clk 0:00:31]}  Ne2 {[%clk 0:00:18]} 68. Bd3 {[%clk 0:00:30]}  Nd4 {[%clk 0:00:18]} 69. Kh5 {[%clk 0:00:29]}  Ne6 {[%clk 0:00:18]} 70. Bb1 {[%clk 0:00:26]}  Nd4 {[%clk 0:00:18]} 71. g4 {[%clk 0:00:20]}  Ne2 {[%clk 0:00:18]} 72. h4 {[%clk 0:00:19]}  Nf4+ {[%clk 0:00:18]} 73. Kh6 {[%clk 0:00:19]}  gxh4 {[%clk 0:00:19]} 74. g5+ {[%clk 0:00:20]}  Ke5 {[%clk 0:00:20]} 75. g6 {[%clk 0:00:12]}  h3 {[%clk 0:00:18]} 76. g7 {[%clk 0:00:11]}  h2 {[%clk 0:00:19]} 77. g8=Q {[%clk 0:00:11]}  h1=Q+ {[%clk 0:00:19]} 78. Kg7 {[%clk 0:00:12]}  Ne6+ {[%clk 0:00:15]} 79. Kf7 {[%clk 0:00:11]}  Qf1+ {[%clk 0:00:15]} 80. Ke7 {[%clk 0:00:11]}  Qf6+ {[%clk 0:00:11]} 81. Kd7 {[%clk 0:00:11]}  Nc5+ {[%clk 0:00:11]} 82. Ke8 {[%clk 0:00:08]}  Qc6+ {[%clk 0:00:11]} 83. Kf8 {[%clk 0:00:08]}  Qf6+ {[%clk 0:00:03]} 84. Ke8 {[%clk 0:00:08]}  Qc6+ {[%clk 0:00:03]} 85. Kf8 {[%clk 0:00:08]}  Ne6+ {[%clk 0:00:04]} 86. Kf7 {[%clk 0:00:07]}  Qb7+ {[%clk 0:00:04]} 87. Kg6 {[%clk 0:00:07]}  Qg2+ {[%clk 0:00:05]} 88. Kf7 {[%clk 0:00:08]}  Qf3+ {[%clk 0:00:05]} 89. Ke7 {[%clk 0:00:07]}  Qb7+ {[%clk 0:00:04]} 90. Ke8 {[%clk 0:00:06]}  Qb8+ {[%clk 0:00:03]} 91. Kf7 {[%clk 0:00:06]}  Qb7+ {[%clk 0:00:04]} 92. Kg6 {[%clk 0:00:06]}  Qxb1+ {[%clk 0:00:03]} 93. Kf7 {[%clk 0:00:05]}  Qb7+ {[%clk 0:00:03]} 94. Kg6 {[%clk 0:00:05]}  Qe4+ {[%clk 0:00:04]} 95. Kf7 {[%clk 0:00:05]}  Qf3+ {[%clk 0:00:04]} 96. Ke7 {[%clk 0:00:05]}  Qa3+ {[%clk 0:00:04]} 97. Kf7 {[%clk 0:00:05]}  Qa7+ {[%clk 0:00:04]} 98. Kg6 {[%clk 0:00:05]}  Qg1+ {[%clk 0:00:05]} 99. Kf7 {[%clk 0:00:06]}  Qf1+ {[%clk 0:00:05]} 100. Ke7 {[%clk 0:00:06]}  Qf6+ {[%clk 0:00:05]} 101. Kd7 {[%clk 0:00:07]}  Nc5+ {[%clk 0:00:06]} 102. Ke8 {[%clk 0:00:07]}  Qc6+ {[%clk 0:00:06]} 103. Kf7 {[%clk 0:00:07]}  Qd7+ {[%clk 0:00:06]} 104. Kg6 {[%clk 0:00:07]}  Qf5+ {[%clk 0:00:06]} 105. Kh6 {[%clk 0:00:06]}  Qh3+ {[%clk 0:00:07]} 106. Kg6 {[%clk 0:00:06]}  Qg4+ {[%clk 0:00:07]} 107. Kf7 {[%clk 0:00:05]}  Qf5+ {[%clk 0:00:07]} 108. Kg7 {[%clk 0:00:05]}  Ne6+ {[%clk 0:00:07]} 109. Kh6 {[%clk 0:00:02]}  Qf6+ {[%clk 0:00:05]} 110. Qg6 {[%clk 0:00:01]}  Qh8+ {[%clk 0:00:03]} 111. Qh7 {[%clk 0:00:02]}  Qf8+ {[%clk 0:00:04]} 112. Kh5 {[%clk 0:00:01]}  Qf3+ {[%clk 0:00:04]} 113. Kg6 {[%clk 0:00:02]}  Qf6+ {[%clk 0:00:04]} 114. Kh5 {[%clk 0:00:02]}  Qg5# {[%clk 0:00:05]} 0-1


[Site "https://www.chess.com"]

[Event "Titled Tuesday Blitz December 06 Late 2022"]
[White "Kovacevic, Radmila"]
[Black "Xu, Grant"]
[WhiteFideId "933171"]
[BlackFideId "2052318"]
[WhiteElo "2244"]
[BlackElo "2186"]
[Result "0-1"]
[Round "04"]
[TimeControl "180+1"]
[Date "2022.12.07"]
[WhiteClock "0:00:09"]
[BlackClock "0:01:01"]

1. e4 {[%clk 0:02:57]}  d6 {[%clk 0:02:59]} 2. d4 {[%clk 0:02:57]}  Nf6 {[%clk 0:02:59]} 3. Nc3 {[%clk 0:02:57]}  e5 {[%clk 0:03:00]} 4. Bc4 {[%clk 0:02:54]}  Be7 {[%clk 0:02:59]} 5. Nf3 {[%clk 0:02:47]}  Nbd7 {[%clk 0:02:59]} 6. Bxf7+ {[%clk 0:02:46]}  Kxf7 {[%clk 0:02:59]} 7. Ng5+ {[%clk 0:02:46]}  Kg8 {[%clk 0:03:00]} 8. Ne6 {[%clk 0:02:46]}  Qe8 {[%clk 0:03:01]} 9. Nxc7 {[%clk 0:02:46]}  Qg6 {[%clk 0:03:01]} 10. O-O {[%clk 0:02:44]}  Rb8 {[%clk 0:03:00]} 11. f4 {[%clk 0:02:40]}  exf4 {[%clk 0:02:58]} 12. Bxf4 {[%clk 0:02:36]}  Nb6 {[%clk 0:02:43]} 13. e5 {[%clk 0:02:25]}  Bg4 {[%clk 0:02:43]} 14. Qe1 {[%clk 0:02:09]}  Nh5 {[%clk 0:02:24]} 15. N3d5 {[%clk 0:01:07]}  Bf8 {[%clk 0:02:12]} 16. exd6 {[%clk 0:00:46]}  Nxf4 {[%clk 0:02:04]} 17. Rxf4 {[%clk 0:00:41]}  Nxd5 {[%clk 0:01:57]} 18. Nxd5 {[%clk 0:00:40]}  Qxd6 {[%clk 0:01:52]} 19. c4 {[%clk 0:00:26]}  Be6 {[%clk 0:01:49]} 20. Nf6+ {[%clk 0:00:14]}  gxf6 {[%clk 0:01:48]} 21. Qg3+ {[%clk 0:00:13]}  Kf7 {[%clk 0:01:43]} 22. d5 {[%clk 0:00:12]}  Bd7 {[%clk 0:01:37]} 23. Raf1 {[%clk 0:00:13]}  Qc5+ {[%clk 0:01:31]} 24. Kh1 {[%clk 0:00:12]}  Be7 {[%clk 0:01:32]} 25. Qh4 {[%clk 0:00:12]}  Rbf8 {[%clk 0:01:09]} 26. Qh5+ {[%clk 0:00:11]}  Kg7 {[%clk 0:01:07]} 27. R4f3 {[%clk 0:00:10]}  Rhg8 {[%clk 0:01:03]} 28. Rh3 {[%clk 0:00:10]}  Bxh3 {[%clk 0:01:03]} 29. Qxh3 {[%clk 0:00:10]}  Kh8 {[%clk 0:01:03]} 30. Qh5 {[%clk 0:00:10]}  Qxc4 {[%clk 0:01:01]} 31. b3 {[%clk 0:00:09]}  Qxf1# {[%clk 0:01:01]} 0-1


[Site "https://www.chess.com"]